bitfinex-derivatives/quotes_SOLF0:USTF0_20260310
["timestamp","ask_amount","ask_price","bid_price","bid_amount"]
[1773104662019,6.0186566,85.509,85.467,6.45861648]
[1773104662224,10.525,85.5,85.467,6.45861648]
[1773104662818,10.525,85.5,85.46,3.49423725]
[1773104663226,6.0186566,85.496,85.455,6.45861648]
[1773104663622,6.0186566,85.496,85.46,3.49423725]
[1773104664324,10.526,85.495,85.46,3.49423725]
[1773104664521,6.0186566,85.489,85.443,6.45861648]
[1773104665526,6.0186566,85.484,85.443,6.45861648]
[1773104666125,10.528,85.481,85.443,6.45861648]
[1773104666324,6.0186566,85.497,85.45,3.49423725]
[1773104666730,6.0186566,85.497,85.443,6.45861648]
[1773104666731,10.527,85.489,85.443,6.45861648]
[1773104667125,6.0186566,85.488,85.443,6.45861648]
[1773104669132,10.527,85.489,85.443,6.45861648]
[1773104669822,10.527,85.489,85.45,3.49423725]
[1773104670024,10.527,85.489,85.45,9.95285373]
[1773104670534,10.526,85.497,85.451,6.45861648]
[1773104671333,10.526,85.497,85.46,3.49423725]
[1773104671727,6.0186566,85.494,85.45,3.49423725]
[1773104671927,6.0186566,85.489,85.44,9.95285373]
[1773104672127,6.0186566,85.489,85.441,6.45861648]
[1773104672526,10.528,85.477,85.441,6.45861648]
[1773104672727,16.5466566,85.477,85.441,6.45861648]
[1773104674034,16.5466566,85.477,85.43,3.49423725]
[1773104674035,6.31815843,85.476,85.43,3.49423725]
[1773104674536,6.31815843,85.476,85.43,9.68812132]
[1773104674935,6.31815843,85.476,85.431,6.19388407]
[1773104676640,6.31815843,85.476,85.44,3.49423725]
[1773104679340,6.31815843,85.476,85.433,6.19388407]
[1773104681339,10.529,85.474,85.433,6.19388407]
[1773104681540,16.84715843,85.474,85.433,6.19388407]
[1773104682038,6.31815843,85.467,85.433,6.19388407]
[1773104682839,6.31815843,85.467,85.421,10.535]
[1773104683439,6.31815843,85.465,85.421,10.535]
[1773104683640,6.31815843,85.459,85.41,3.50509123]
[1773104684138,6.31815843,85.448,85.407,6.19388407]
[1773104685541,6.31815843,85.46,85.411,6.19388407]
[1773104685844,6.31815843,85.469,85.421,6.19388407]
[1773104686139,10.53,85.461,85.421,6.19388407]
[1773104688638,6.31815843,85.456,85.42,3.50509123]
[1773104688840,6.31815843,85.456,85.412,10.536]
[1773104689035,6.31815843,85.456,85.412,6.19388407]
[1773104689336,6.31815843,85.439,85.398,6.19388407]
[1773104689842,6.31815843,85.429,85.382,6.19388407]
[1773104691133,10.534,85.428,85.382,6.19388407]
[1773104693242,6.29767183,85.424,85.382,6.19388407]
[1773104696548,6.29767183,85.436,85.39,3.50509123]
[1773104696749,6.29767183,85.436,85.382,6.19388407]
[1773104697547,6.29767183,85.431,85.382,6.19388407]
[1773104698350,6.29767183,85.429,85.382,6.19388407]
[1773104700354,16.83167183,85.428,85.382,6.19388407]
[1773104700550,16.83167183,85.428,85.379,10.54]
[1773104700551,6.29767183,85.44,85.4,3.50509123]
[1773104700956,6.29767183,85.419,85.37,3.50509123]
[1773104701346,6.29767183,85.419,85.37,9.4365023]
[1773104701550,6.29767183,85.419,85.38,3.50509123]
[1773104701852,6.29767183,85.409,85.357,5.93141107]
[1773104702048,6.29767183,85.409,85.36,3.50509123]
[1773104702259,6.29767183,85.399,85.35,3.50509123]
[1773104703354,6.33171795,85.385,85.345,5.93141107]
[1773104704150,6.33171795,85.382,85.345,5.93141107]
[1773104704350,6.33171795,85.382,85.331,5.90451218]
[1773104705461,6.33171795,85.378,85.331,5.90451218]
[1773104706550,6.33171795,85.378,85.32,3.50509123]
[1773104706751,6.33171795,85.378,85.321,5.90451218]
[1773104707361,10.542,85.368,85.321,5.90451218]
[1773104709262,16.87171795,85.378,85.331,5.90451218]
[1773104710470,6.33171795,85.377,85.331,5.90451218]
[1773104710661,6.33171795,85.375,85.331,5.90451218]
[1773104711368,21.068,85.431,85.34,3.50509123]
[1773104711369,10.54,85.385,85.34,3.50509123]
[1773104711568,6.33171795,85.389,85.341,5.90451218]
[1773104712167,6.33171795,85.387,85.341,5.90451218]
[1773104712363,6.33171795,85.379,85.341,5.90451218]
[1773104713466,6.33171795,85.392,85.344,5.90451218]
[1773104713667,6.33171795,85.392,85.351,5.90451218]
[1773104714072,10.54,85.383,85.34,3.50509123]
[1773104714274,6.33171795,85.379,85.33,3.50509123]
[1773104714870,6.33171795,85.379,85.331,5.90451218]
[1773104715172,6.33171795,85.379,85.341,5.90451218]
[1773104715869,6.33171795,85.379,85.305,5.90451218]
[1773104716169,6.33171795,85.369,85.331,5.90451218]
[1773104717465,6.33171795,85.382,85.341,5.90451218]
[1773104717767,22.0,85.399,85.287,11.50556694]
[1773104717768,6.33171795,85.398,85.36,3.50509123]
[1773104718669,6.33171795,85.396,85.36,3.50509123]
[1773104718874,6.33171795,85.396,85.351,5.90451218]
[1773104719169,6.33171795,85.396,85.345,10.544]
[1773104719170,6.33171795,85.409,85.37,3.50509123]
[1773104719373,6.33171795,85.409,85.277,177.0]
[1773104719374,6.33171795,85.422,85.38,3.50509123]
[1773104719977,10.535,85.418,85.38,3.50509123]
[1773104720175,10.535,85.418,85.371,5.90451218]
[1773104720370,10.535,85.418,85.37,3.50509123]
[1773104720371,6.33171795,85.422,85.39,3.50509123]
[1773104720576,6.33171795,85.435,85.39,3.50509123]
[1773104720978,6.33171795,85.435,85.4,3.50509123]
[1773104721373,6.33171795,85.449,85.41,3.50509123]
[1773104721874,6.33171795,85.463,85.43,3.50509123]
[1773104723178,16.85971795,85.476,85.43,3.50509123]
[1773104723373,10.527,85.487,85.44,3.50509123]
[1773104723578,16.85871795,85.487,85.44,3.50509123]
[1773104723771,6.33171795,85.486,85.44,3.50509123]
[1773104724483,14.31276657,85.564,85.376,21.58515038]
[1773104724484,6.33171795,85.459,85.404,5.90451218]
[1773104724677,21.05,85.505,85.39,3.50509123]
[1773104724678,6.33171795,85.449,85.39,3.50509123]
[1773104724878,6.33171795,85.439,85.389,5.90451218]
[1773104725673,6.33171795,85.455,85.401,5.90451218]
[1773104725884,6.33171795,85.455,85.318,28.74131008]
[1773104725885,6.33171795,85.455,85.42,3.50509123]
[1773104726778,6.33171795,85.471,85.421,5.90451218]
[1773104727378,10.529,85.468,85.421,5.90451218]
[1773104727778,6.33171795,85.467,85.421,5.90451218]
[1773104728483,6.33171795,85.467,85.41,3.50509123]
[1773104728685,6.33171795,85.467,85.411,5.90451218]
[1773104729385,10.53,85.466,85.42,3.50509123]
[1773104729680,6.33171795,85.465,85.42,3.50509123]
[1773104730185,21.05,85.505,85.43,3.50509123]
[1773104730186,10.529,85.474,85.43,3.50509123]
[1773104730984,10.529,85.467,85.43,3.50509123]
[1773104731185,6.33171795,85.473,85.43,3.50509123]
[1773104731586,10.529,85.471,85.421,5.90451218]
[1773104731989,6.33171795,85.473,85.423,5.90451218]
[1773104732185,6.33171795,85.499,85.423,5.90451218]
[1773104733383,10.528,85.48,85.423,5.90451218]
[1773104735181,5.91449854,85.486,85.431,5.97186806]
[1773104736184,10.527,85.484,85.434,10.533]
[1773104736384,10.527,85.484,85.435,5.97186806]
[1773104736778,10.528,85.476,85.435,5.97186806]
[1773104736986,5.91449854,85.475,85.42,5.97186806]
[1773104737486,5.91449854,85.467,85.42,5.97186806]
[1773104737687,10.529,85.468,85.42,5.97186806]
[1773104740792,10.53,85.466,85.42,5.97186806]
[1773104741692,16.44449854,85.466,85.42,5.97186806]
[1773104742994,10.53,85.462,85.42,5.97186806]
[1773104743193,5.91449854,85.465,85.422,5.97186806]
[1773104743489,10.53,85.464,85.422,5.97186806]
[1773104751600,5.91449854,85.463,85.422,5.97186806]
[1773104751900,5.91449854,85.463,85.42,3.50430904]
[1773104752103,5.91449854,85.463,85.421,6.05120207]
[1773104752600,10.53,85.461,85.421,6.05120207]
[1773104753297,21.052,85.495,85.413,6.05120207]
[1773104753298,5.80780339,85.452,85.413,6.05120207]
[1773104753699,5.80780339,85.469,85.421,6.05120207]
[1773104753896,5.80780339,85.469,85.43,3.50430904]
[1773104755492,10.53,85.466,85.43,3.50430904]
[1773104755897,5.80780339,85.469,85.43,3.50430904]
[1773104756799,10.529,85.468,85.43,3.50430904]
[1773104758400,10.53,85.461,85.43,3.50430904]
[1773104758596,10.53,85.461,85.421,6.05120207]
[1773104760504,5.80780339,85.457,85.406,6.05120207]
[1773104760704,5.80780339,85.457,85.41,3.50430904]
[1773104762104,5.80780339,85.457,85.411,6.05120207]
[1773104762306,5.80780339,85.471,85.43,3.50430904]
[1773104762605,5.80780339,85.489,85.45,3.50430904]
[1773104763407,10.527,85.488,85.45,3.50430904]
[1773104764304,10.527,85.488,85.46,3.50430904]
[1773104765608,10.527,85.488,85.447,6.37938443]
[1773104765805,6.17607847,85.503,85.447,6.37938443]
[1773104766002,21.042,85.538,85.441,14.39010025]
[1773104766003,6.17607847,85.534,85.455,6.37938443]
[1773104766204,6.17607847,85.534,85.459,6.37938443]
[1773104766601,6.17607847,85.52,85.459,6.37938443]
[1773104767205,6.17607847,85.52,85.46,6.37938443]
[1773104767499,10.524,85.514,85.461,6.37938443]
[1773104768203,10.524,85.514,85.464,6.37938443]
[1773104768401,6.17607847,85.52,85.464,6.37938443]
[1773104768597,6.17607847,85.533,85.47,9.37995028]
[1773104768802,6.17607847,85.533,85.471,6.37938443]
[1773104769208,10.521,85.532,85.482,6.37938443]
[1773104770610,6.17607847,85.533,85.482,6.37938443]
[1773104771708,10.52,85.541,85.482,6.37938443]
[1773104771709,6.17607847,85.531,85.482,6.37938443]
[1773104772306,6.17607847,85.529,85.482,6.37938443]
[1773104773202,6.17607847,85.524,85.468,6.37938443]
[1773104773809,9.37995028,85.56,85.47,6.37938443]
[1773104773810,16.69807847,85.523,85.47,6.37938443]
[1773104774309,6.17607847,85.519,85.47,6.37938443]
[1773104775104,10.524,85.509,85.47,6.37938443]
[1773104775505,6.17607847,85.508,85.443,6.37938443]
[1773104775700,10.526,85.493,85.444,10.532]
[1773104775904,6.17607847,85.508,85.445,6.37938443]
[1773104777099,10.525,85.502,85.448,10.532]
[1773104777305,6.17607847,85.508,85.43,9.37995028]
[1773104777306,6.17607847,85.508,85.449,6.37938443]
[1773104778507,16.70107847,85.506,85.454,6.37938443]
[1773104780813,16.70107847,85.504,85.454,6.37938443]
[1773104781310,6.17607847,85.531,85.466,6.37938443]
[1773104781614,6.17607847,85.531,85.471,6.37938443]
[1773104782009,16.69807847,85.531,85.481,6.37938443]
[1773104783414,6.17607847,85.531,85.483,6.37938443]
[1773104784315,6.17607847,85.559,85.483,6.37938443]
[1773104785015,6.17607847,85.559,85.491,6.37938443]
[1773104785607,6.17607847,85.559,85.473,35.04]
[1773104785608,6.17607847,85.559,85.51,3.49682951]
[1773104786007,6.17607847,85.559,85.511,6.37938443]
[1773104786212,6.17607847,85.559,85.52,3.49682951]
[1773104787516,6.14123276,85.579,85.53,3.49682951]
[1773104788020,6.14123276,85.579,85.531,6.37938443]
[1773104788424,10.516,85.578,85.531,6.37938443]
[1773104788613,6.14123276,85.579,85.541,6.37938443]
[1773104789019,6.13295881,85.577,85.532,6.37938443]
[1773104789321,6.13295881,85.577,85.54,3.49682951]
[1773104789515,6.13295881,85.577,85.532,6.37938443]
[1773104792721,6.13078227,85.593,85.534,6.37938443]
[1773104793219,6.12675719,85.629,85.551,6.37938443]
[1773104794416,5.80557596,85.622,85.565,6.16936177]
[1773104795419,5.80557596,85.622,85.571,6.16936177]
[1773104796333,5.80557596,85.62,85.571,6.16936177]
[1773104796927,5.80557596,85.669,85.571,6.16936177]
[1773104798336,5.80557596,85.647,85.589,10.514]
[1773104798636,5.80557596,85.647,85.59,6.16936177]
[1773104800437,5.80557596,85.641,85.591,10.514]
[1773104801332,5.80557596,85.639,85.591,10.514]
[1773104801533,5.80557596,85.639,85.592,6.16936177]
[1773104803132,5.80557596,85.628,85.574,6.16936177]
[1773104804532,16.31557596,85.625,85.577,16.68536177]
[1773104805336,16.31557596,85.625,85.578,6.16936177]
[1773104805640,5.80557596,85.624,85.578,6.16936177]
[1773104805835,5.80557596,85.622,85.578,6.16936177]
[1773104807641,16.31457596,85.635,85.581,6.16936177]
[1773104807838,5.80557596,85.679,85.581,6.16936177]
[1773104808343,9.35204231,85.68,85.601,10.513]
[1773104808344,5.80557596,85.646,85.601,10.513]
[1773104809440,5.80557596,85.641,85.58,9.35204231]
[1773104809638,5.80557596,85.641,85.586,6.16936177]
[1773104810239,5.80557596,85.637,85.586,6.16936177]
[1773104811147,5.80557596,85.637,85.572,6.16936177]
[1773104812349,10.51,85.622,85.573,6.16936177]
[1773104812545,5.80557596,85.621,85.573,6.16936177]
[1773104813347,5.80557596,85.619,85.573,6.16936177]
[1773104814844,10.512,85.609,85.573,6.16936177]
[1773104815050,9.35204231,85.64,85.573,6.16936177]
[1773104815051,6.06147339,85.639,85.573,6.16936177]
[1773104815851,10.511,85.618,85.574,5.85431708]
[1773104816544,10.512,85.611,85.574,5.85431708]
[1773104817148,6.05498699,85.603,85.561,5.85431708]
[1773104817951,10.511,85.614,85.565,5.85431708]
[1773104820553,16.53817257,85.614,85.565,5.85431708]
[1773104821055,10.512,85.611,85.565,5.85431708]
[1773104821651,6.00130337,85.626,85.567,5.85431708]
[1773104821856,163.239,85.76,85.56,9.35204231]
[1773104821857,6.00130337,85.659,85.581,5.85431708]
[1773104822056,6.00130337,85.659,85.601,5.85431708]
[1773104822956,10.506,85.656,85.601,5.85431708]
[1773104823152,16.50162356,85.656,85.601,5.85431708]
[1773104823350,5.99562356,85.655,85.601,5.85431708]
[1773104824053,5.84100268,85.65,85.581,6.21601]
[1773104824959,16.35100268,85.625,85.581,6.21601]
[1773104825856,10.511,85.617,85.581,6.21601]
[1773104826655,5.84100268,85.61,85.56,9.35204231]
[1773104827255,5.84100268,85.61,85.56,15.56805231]
[1773104827558,5.84100268,85.626,85.562,6.21601]
[1773104828354,5.84100268,85.626,85.58,6.21601]
[1773104828552,10.509,85.63,85.58,6.21601]
[1773104829361,5.84100268,85.637,85.59,10.514]
[1773104829557,5.84100268,85.679,85.59,6.21601]
[1773104830058,5.84100268,85.652,85.597,10.513]
[1773104830558,4.49591419,85.651,85.602,6.21601]
[1773104830763,5.84100268,85.652,85.602,6.21601]
[1773104831451,9.35204231,85.68,85.58,9.35204231]
[1773104831452,5.84100268,85.65,85.587,6.21601]
[1773104831657,5.84100268,85.648,85.587,6.21601]
[1773104831853,5.84100268,85.646,85.587,6.21601]
[1773104832053,5.84100268,85.644,85.587,6.21601]
[1773104832257,5.84100268,85.642,85.587,6.21601]
[1773104832453,5.84100268,85.64,85.587,6.21601]
[1773104832654,5.84100268,85.638,85.587,6.21601]
[1773104832961,5.84100268,85.638,85.589,6.21601]
[1773104834263,5.84100268,85.636,85.585,10.515]
[1773104834455,5.84100268,85.634,85.585,10.515]
[1773104834659,5.84100268,85.632,85.585,10.515]
[1773104834864,10.34427877,85.631,85.585,10.515]
[1773104835061,3.92037762,85.63,85.585,10.515]
[1773104835361,3.92037762,85.63,85.561,35.04]
[1773104835362,3.92037762,85.629,85.58,6.21601]
[1773104835560,5.84100268,85.648,85.59,6.21601]
[1773104836266,10.507,85.647,85.595,6.21601]
[1773104836968,10.507,85.647,85.597,6.21601]
[1773104837567,10.507,85.647,85.6,16.72901]
[1773104837767,10.507,85.647,85.601,6.21601]
[1773104838271,5.84100268,85.648,85.601,6.21601]
[1773104838863,5.84100268,85.648,85.601,16.72901]
[1773104840561,5.84100268,85.648,85.602,6.21601]
[1773104840762,10.506,85.657,85.605,6.21601]
[1773104841863,16.34700268,85.657,85.605,6.21601]
[1773104842168,9.35204231,85.68,85.606,10.512]
[1773104842169,10.506,85.654,85.606,10.512]
[1773104843070,10.507,85.65,85.606,10.512]
[1773104845273,5.84100268,85.653,85.609,6.21601]
[1773104845474,5.84100268,85.678,85.609,6.21601]
[1773104845676,5.84100268,85.676,85.609,6.21601]
[1773104846372,10.507,85.652,85.609,6.21601]
[1773104847065,10.507,85.65,85.609,6.21601]
[1773104847269,4.51200839,85.649,85.609,6.21601]
[1773104847466,4.51200839,85.648,85.609,6.21601]
[1773104847666,10.507,85.65,85.609,6.21601]
[1773104847874,10.507,85.648,85.609,6.21601]
[1773104848075,4.5116524,85.647,85.609,6.21601]
[1773104848269,4.5116524,85.646,85.609,6.21601]
[1773104848467,16.34900268,85.644,85.6,10.513]
[1773104848667,4.5116524,85.643,85.6,10.513]
[1773104848872,4.5116524,85.642,85.6,10.513]
[1773104849175,4.5116524,85.641,85.6,10.513]
[1773104849377,4.5116524,85.64,85.6,10.513]
[1773104849680,16.34900268,85.638,85.599,14.39010025]
[1773104849871,4.5116524,85.637,85.599,14.39010025]
[1773104850072,4.5114083,85.636,85.599,14.39010025]
[1773104850376,16.34900268,85.638,85.599,14.39010025]
[1773104850576,4.51137941,85.637,85.599,14.39010025]
[1773104850776,4.51137941,85.636,85.599,14.39010025]
[1773104850977,16.34900268,85.638,85.599,14.39010025]
[1773104851276,4.51137941,85.637,85.599,14.39010025]
[1773104851478,4.51137941,85.636,85.599,14.39010025]
[1773104851675,16.34900268,85.638,85.599,14.39010025]
[1773104851977,4.51143017,85.637,85.599,14.39010025]
[1773104852178,4.51143017,85.636,85.599,14.39010025]
[1773104852378,16.34900268,85.638,85.599,14.39010025]
[1773104852680,4.51151466,85.637,85.599,14.39010025]
[1773104852880,4.51151466,85.636,85.599,14.39010025]
[1773104853081,16.34900268,85.638,85.599,14.39010025]
[1773104853277,10.509,85.636,85.599,14.39010025]
[1773104853576,10.509,85.636,85.584,10.515]
[1773104853577,6.0002237,85.634,85.59,14.39010025]
[1773104853782,6.0002237,85.632,85.589,14.39010025]
[1773104853975,6.0002237,85.628,85.589,14.39010025]
[1773104854178,3.49119885,85.64,85.581,5.74266037]
[1773104854179,4.51151466,85.627,85.586,5.74266037]
[1773104854478,6.0002237,85.641,85.601,5.74266037]
[1773104854682,4.51126737,85.64,85.61,3.49119885]
[1773104854882,4.51126737,85.639,85.61,3.49119885]
[1773104855080,16.5062237,85.654,85.611,5.74266037]
[1773104855081,6.0002237,85.654,85.611,5.74266037]
[1773104855282,4.51126234,85.653,85.611,5.74266037]
[1773104855584,4.51126234,85.652,85.611,5.74266037]
[1773104855882,4.51126234,85.651,85.611,5.74266037]
[1773104856084,4.51126234,85.65,85.611,5.74266037]
[1773104856283,4.51126234,85.649,85.611,5.74266037]
[1773104856484,4.51126234,85.648,85.611,5.74266037]
[1773104856681,4.51126234,85.647,85.611,5.74266037]
[1773104856880,4.51126234,85.646,85.611,5.74266037]
[1773104857181,4.51126234,85.645,85.611,5.74266037]
[1773104857382,4.51126234,85.644,85.611,5.74266037]
[1773104857583,4.51126234,85.643,85.62,3.49119885]
[1773104857785,6.0002237,85.641,85.6,3.49119885]
[1773104858086,6.0002237,85.639,85.595,14.39010025]
[1773104858283,6.0002237,85.635,85.59,17.8812991]
[1773104858482,4.51126234,85.634,85.59,17.8812991]
[1773104858685,4.51126234,85.633,85.59,17.8812991]
[1773104858885,4.51126234,85.632,85.59,17.8812991]
[1773104859084,4.51126234,85.631,85.59,17.8812991]
[1773104859288,4.51126234,85.63,85.59,3.49119885]
[1773104859487,4.51126234,85.629,85.59,3.49119885]
[1773104859686,4.51126234,85.628,85.59,3.49119885]
[1773104859884,4.51126234,85.627,85.59,3.49119885]
[1773104860082,6.0002237,85.634,85.59,17.8812991]
[1773104860387,4.51121876,85.633,85.59,17.8812991]
[1773104860588,4.51121876,85.632,85.59,17.8812991]
[1773104860891,4.51121876,85.631,85.59,17.8812991]
[1773104861189,4.51121876,85.63,85.59,17.8812991]
[1773104861489,6.0002237,85.634,85.59,17.8812991]
[1773104861490,10.51,85.628,85.591,5.74266037]
[1773104861686,4.51121876,85.627,85.591,5.74266037]
[1773104861885,4.51121876,85.626,85.591,5.74266037]
[1773104862085,4.51121876,85.625,85.591,5.74266037]
[1773104862290,10.51,85.628,85.591,20.13276062]
[1773104862485,4.53121383,85.627,85.591,20.13276062]
[1773104862686,4.53121383,85.626,85.591,20.13276062]
[1773104862885,4.53121383,85.625,85.591,5.74266037]
[1773104863085,4.53121383,85.624,85.591,5.74266037]
[1773104863385,6.0002237,85.659,85.61,3.49119885]
[1773104863580,6.0002237,85.657,85.61,3.49119885]
[1773104863784,6.0002237,85.655,85.61,3.49119885]
[1773104863986,6.0002237,85.653,85.61,3.49119885]
[1773104864186,3.49119885,85.66,85.61,3.49119885]
[1773104864187,6.0002237,85.65,85.61,3.49119885]
[1773104864388,4.53203229,85.649,85.61,3.49119885]
[1773104864588,4.53203229,85.648,85.61,3.49119885]
[1773104864888,6.0002237,85.649,85.61,3.49119885]
[1773104864889,4.53203229,85.647,85.61,3.49119885]
[1773104865088,4.53203229,85.646,85.61,3.49119885]
[1773104865289,4.53203229,85.645,85.61,3.49119885]
[1773104865481,4.53203229,85.644,85.61,3.49119885]
[1773104865683,4.53203229,85.643,85.61,3.4894192]
[1773104865879,4.53203229,85.642,85.61,3.4894192]
[1773104866081,4.53203229,85.641,85.61,3.4894192]
[1773104866283,4.53203229,85.64,85.61,3.4894192]
[1773104866489,6.0002237,85.649,85.61,3.4894192]
[1773104866490,4.53203229,85.639,85.61,3.4894192]
[1773104866686,4.53203229,85.638,85.61,3.4894192]
[1773104866886,10.506,85.661,85.62,9.23207957]
[1773104867692,6.0002237,85.662,85.63,3.4894192]
[1773104868394,6.0002237,85.662,85.62,9.23207957]
[1773104868588,16.5052237,85.662,85.62,9.23207957]
[1773104869593,5.70273102,85.661,85.62,9.23207957]
[1773104871586,10.506,85.658,85.62,9.23207957]
[1773104871791,5.70273102,85.657,85.61,3.4894192]
[1773104872095,5.70273102,85.657,85.611,6.19420289]
[1773104872394,10.507,85.648,85.611,6.19420289]
[1773104872992,5.70273102,85.647,85.611,6.19420289]
[1773104873196,5.70273102,85.647,85.614,14.39010025]
[1773104874600,14.35933013,85.709,85.594,10.514]
[1773104874601,5.70273102,85.644,85.605,14.39010025]
[1773104874791,5.70273102,85.644,85.604,14.39010025]
[1773104874992,5.70273102,85.644,85.605,14.39010025]
[1773104875598,5.70273102,85.639,85.604,14.39010025]
[1773104875896,5.70273102,85.639,85.595,14.39010025]
[1773104876287,5.70273102,85.639,85.594,14.39010025]
[1773104876493,10.51,85.626,85.594,14.39010025]
[1773104877399,10.51,85.626,85.595,14.39010025]
[1773104878399,5.70273102,85.634,85.595,14.39010025]
[1773104880088,5.70273102,85.634,85.6,3.4894192]
[1773104880694,16.21173102,85.632,85.595,14.39010025]
[1773104881002,5.70273102,85.631,85.595,14.39010025]
[1773104881994,5.70273102,85.675,85.62,3.4894192]
[1773104882193,5.70273102,85.675,85.63,3.4894192]
[1773104882605,10.506,85.658,85.63,3.4894192]
[1773104882805,10.506,85.658,85.62,3.4894192]
[1773104883001,5.70273102,85.658,85.614,14.39010025]
[1773104883197,5.70273102,85.658,85.612,14.39010025]
[1773104883398,5.70273102,85.658,85.604,14.39010025]
[1773104883595,5.70273102,85.658,85.601,6.19420289]
[1773104884198,10.508,85.642,85.601,6.19420289]
[1773104884503,6.00175823,85.641,85.601,6.19420289]
[1773104885102,6.00175823,85.641,85.6,3.4894192]
[1773104885406,10.508,85.64,85.6,3.4894192]
[1773104885607,16.50975823,85.64,85.6,3.4894192]
[1773104886109,6.00175823,85.639,85.6,3.4894192]
[1773104886807,10.509,85.636,85.6,3.4894192]
[1773104887805,6.00175823,85.639,85.6,3.4894192]
[1773104888011,6.00175823,85.652,85.62,3.4894192]
[1773104889508,16.50875823,85.652,85.61,9.34585581]
[1773104890110,16.50875823,85.652,85.611,5.85643661]
[1773104890906,4.51952815,85.651,85.62,3.4894192]
[1773104891114,4.51952815,85.65,85.63,3.4894192]
[1773104891311,4.51952815,85.649,85.63,3.4894192]
[1773104891510,4.51952815,85.648,85.62,3.4894192]
[1773104891712,4.51952815,85.647,85.63,3.4894192]
[1773104891914,10.505,85.668,85.63,9.34585581]
[1773104892515,6.00175823,85.66,85.63,3.4894192]
[1773104892713,6.00175823,85.66,85.62,3.4894192]
[1773104893016,6.00175823,85.66,85.615,5.85643661]
[1773104893416,10.506,85.657,85.615,5.85643661]
[1773104893614,10.506,85.657,85.62,3.4894192]
[1773104895511,16.50775823,85.657,85.62,3.4894192]
[1773104895719,6.00175823,85.65,85.61,3.4894192]
[1773104896715,6.00175823,85.65,85.606,14.39010025]
[1773104896912,6.00175823,85.65,85.605,14.39010025]
[1773104897420,10.507,85.648,85.61,3.4894192]
[1773104901522,10.507,85.646,85.61,3.4894192]
[1773104901719,6.00175823,85.645,85.61,3.4894192]
[1773104901924,6.00175823,85.645,85.6,3.4894192]
[1773104902223,16.50975823,85.641,85.6,3.4894192]
[1773104903420,16.50975823,85.641,85.61,3.4894192]
[1773104905328,10.508,85.641,85.601,5.85643661]
[1773104906621,6.00175823,85.654,85.61,3.4894192]
[1773104906825,22.0,85.659,85.63,3.4894192]
[1773104907018,6.00175823,85.667,85.63,3.4894192]
[1773104907220,10.506,85.657,85.621,5.85643661]
[1773104908625,6.00175823,85.65,85.614,14.39010025]
[1773104909532,10.506,85.656,85.62,3.4894192]
[1773104910426,16.50775823,85.656,85.62,3.4894192]
[1773104910722,22.0,85.672,85.61,3.4894192]
[1773104910723,6.00175823,85.652,85.61,3.4894192]
[1773104910927,6.00175823,85.649,85.6,3.4894192]
[1773104911118,6.00175823,85.649,85.61,3.4894192]
[1773104912324,16.50875823,85.649,85.61,3.4894192]
[1773104914130,10.507,85.647,85.61,3.4894192]
[1773104917332,5.8584879,85.64,85.607,14.39010025]
[1773104917535,5.8584879,85.64,85.606,14.39010025]
[1773104917736,5.8584879,85.64,85.607,14.39010025]
[1773104918438,5.8584879,85.638,85.607,14.39010025]
[1773104918636,5.8584879,85.638,85.606,14.39010025]
[1773104920242,5.8584879,85.638,85.602,14.39010025]
[1773104921145,5.8584879,85.634,85.598,14.39010025]
[1773104921942,5.8584879,85.634,85.6,3.4894192]
[1773104922446,22.0,85.649,85.6,24.04047781]
[1773104922447,10.509,85.637,85.6,24.04047781]
[1773104922646,10.509,85.637,85.6,9.65037756]
[1773104924444,5.8584879,85.647,85.6,3.4894192]
[1773104925049,5.8584879,85.645,85.6,3.4894192]
[1773104925350,10.509,85.633,85.6,3.4894192]
[1773104925551,10.509,85.633,85.6,3.4905535]
[1773104931154,5.8584879,85.634,85.596,14.39010025]
[1773104931355,5.8584879,85.634,85.595,14.39010025]
[1773104932353,5.8584879,85.634,85.6,3.4905535]
[1773104933559,5.67873088,85.63,85.583,14.39010025]
[1773104933761,5.67873088,85.609,85.573,0.00010025]
[1773104934054,3.4905535,85.6,85.555,21.58104251]
[1773104934258,5.67873088,85.609,85.553,6.00516315]
[1773104935059,10.514,85.593,85.553,6.00516315]
[1773104935262,5.67873088,85.609,85.57,3.4905535]
[1773104935560,5.67873088,85.609,85.57,9.49571665]
[1773104936156,5.67873088,85.609,85.58,3.4905535]
[1773104937558,5.67873088,85.609,85.57,9.49571665]
[1773104937763,10.512,85.607,85.57,9.49571665]
[1773104938363,10.513,85.597,85.56,3.4905535]
[1773104938754,5.67873088,85.609,85.56,9.49571665]
[1773104938958,5.67873088,85.609,85.561,6.00516315]